[Event "*** Titled Tuesday Blitz"]
[Site "Chess.com"]
[Date "2020.03.03"]
[Round "3"]
[White "Anton_Demchenko"]
[Black "JSPrepz"]
[Result "0-1"]
[WhiteElo "2973"]
[BlackElo "2757"]
[TimeControl "180+1"]
[EndTime "9:30:11 PST"]
[Termination "JSPrepz won on time"]

1. e4 {[%clk 0:03:00.9]} 1... e5 {[%clk 0:03:00]} 2. Nf3 {[%clk 0:03:00.6]} 2...
Nc6 {[%clk 0:03:00.7]} 3. Bc4 {[%clk 0:03:00.4]} 3... Nf6 {[%clk 0:03:00.8]} 4.
d3 {[%clk 0:03:01.3]} 4... h6 {[%clk 0:02:59.7]} 5. Nc3 {[%clk 0:02:57.4]} 5...
d6 {[%clk 0:02:59.6]} 6. O-O {[%clk 0:02:56.1]} 6... g5 {[%clk 0:02:59.1]} 7.
Ne2 {[%clk 0:02:56.3]} 7... Bg4 {[%clk 0:02:49.4]} 8. c3 {[%clk 0:02:53.8]} 8...
Bxf3 {[%clk 0:02:41.6]} 9. gxf3 {[%clk 0:02:54.7]} 9... Bg7 {[%clk 0:02:41.9]}
10. Ng3 {[%clk 0:02:54.7]} 10... Ne7 {[%clk 0:02:42.1]} 11. Qb3 {[%clk
0:02:50.5]} 11... O-O {[%clk 0:02:40.7]} 12. Qxb7 {[%clk 0:02:49.3]} 12... a5
{[%clk 0:02:39]} 13. Qb3 {[%clk 0:02:46.6]} 13... c6 {[%clk 0:02:39.4]} 14. d4
{[%clk 0:02:39.1]} 14... d5 {[%clk 0:02:34.5]} 15. Bd3 {[%clk 0:02:39.1]} 15...
exd4 {[%clk 0:02:32.6]} 16. cxd4 {[%clk 0:02:39.1]} 16... dxe4 {[%clk
0:02:30.6]} 17. fxe4 {[%clk 0:02:39.4]} 17... Qxd4 {[%clk 0:02:29.3]} 18. Be3
{[%clk 0:02:39]} 18... Qe5 {[%clk 0:02:29.7]} 19. Rac1 {[%clk 0:01:59.8]} 19...
Ng4 {[%clk 0:02:23.1]} 20. Bc5 {[%clk 0:01:55.8]} 20... Rfb8 {[%clk 0:02:10.7]}
21. Qd1 {[%clk 0:01:48.1]} 21... Nf6 {[%clk 0:01:46.1]} 22. b3 {[%clk
0:01:43.5]} 22... Ng6 {[%clk 0:01:39.8]} 23. Bc4 {[%clk 0:01:42.4]} 23... Rd8
{[%clk 0:01:37.3]} 24. Qf3 {[%clk 0:01:16.5]} 24... Nh4 {[%clk 0:01:37.1]} 25.
Qe2 {[%clk 0:01:15.7]} 25... Rd2 {[%clk 0:01:32.9]} 26. Qe3 {[%clk 0:00:36.3]}
26... Ng4 {[%clk 0:01:32.3]} 27. f4 {[%clk 0:00:36.6]} 27... Rg2+ {[%clk
0:01:11.8]} 28. Kh1 {[%clk 0:00:36.5]} 28... Rxh2+ {[%clk 0:01:12.2]} 29. Kg1
{[%clk 0:00:35.2]} 29... Rg2+ {[%clk 0:01:06.2]} 30. Kh1 {[%clk 0:00:35.3]}
30... Nxe3 {[%clk 0:01:06.6]} 31. fxe5 {[%clk 0:00:34.9]} 31... Nxf1 {[%clk
0:00:47.4]} 32. Rxf1 {[%clk 0:00:26]} 32... Rxg3 {[%clk 0:00:45.8]} 33. Rxf7
{[%clk 0:00:25.8]} 33... Kh8 {[%clk 0:00:36.7]} 34. e6 {[%clk 0:00:26.1]} 34...
Rh3+ {[%clk 0:00:20.7]} 35. Kg1 {[%clk 0:00:25.9]} 35... Rf3 {[%clk 0:00:20.7]}
36. e7 {[%clk 0:00:20.3]} 36... Re8 {[%clk 0:00:20.8]} 37. Be6 {[%clk
0:00:10.4]} 37... g4 {[%clk 0:00:18.7]} 38. Kh2 {[%clk 0:00:03]} 38... Kh7
{[%clk 0:00:18.1]} 39. Rxf3 {[%clk 0:00:02.3]} 39... Nxf3+ {[%clk 0:00:18.1]}
40. Kg3 {[%clk 0:00:03.2]} 40... Ne5 {[%clk 0:00:16.1]} 41. Bf5+ {[%clk
0:00:02.9]} 41... Kh8 {[%clk 0:00:15.6]} 42. a3 {[%clk 0:00:02.1]} 42... Bf6
{[%clk 0:00:16.1]} 43. Kf4 {[%clk 0:00:01.4]} 43... Bxe7 {[%clk 0:00:15]} 0-1

[Event "*** Titled Tuesday Blitz"]
[Site "Chess.com"]
[Date "2020.03.03"]
[Round "3"]
[White "VitaliyBernadskiy"]
[Black "ShahMatKanal"]
[Result "1-0"]
[WhiteElo "2787"]
[BlackElo "2510"]
[TimeControl "180+1"]
[EndTime "9:30:16 PST"]
[Termination "VitaliyBernadskiy won by resignation"]

1. d4 {[%clk 0:03:00.9]} 1... e6 {[%clk 0:02:57.9]} 2. e4 {[%clk 0:03:00.2]}
2... d5 {[%clk 0:02:49]} 3. Nc3 {[%clk 0:03:00.6]} 3... dxe4 {[%clk 0:02:46.9]}
4. Nxe4 {[%clk 0:03:01.5]} 4... Nf6 {[%clk 0:02:44.1]} 5. Nxf6+ {[%clk
0:03:01.2]} 5... Qxf6 {[%clk 0:02:43.5]} 6. Nf3 {[%clk 0:03:00.9]} 6... h6
{[%clk 0:02:37.8]} 7. h4 {[%clk 0:03:00.8]} 7... Qd8 {[%clk 0:02:30.1]} 8. Bd3
{[%clk 0:02:59.3]} 8... Nd7 {[%clk 0:02:28.9]} 9. Qe2 {[%clk 0:02:59.2]} 9...
Nf6 {[%clk 0:02:28.1]} 10. Bd2 {[%clk 0:02:59.5]} 10... c5 {[%clk 0:02:14.5]}
11. c3 {[%clk 0:02:50.1]} 11... cxd4 {[%clk 0:02:14]} 12. Nxd4 {[%clk 0:02:51]}
12... Be7 {[%clk 0:02:09.1]} 13. O-O-O {[%clk 0:02:50.7]} 13... Qa5 {[%clk
0:02:05.1]} 14. Kb1 {[%clk 0:02:38.9]} 14... Bd7 {[%clk 0:02:01.8]} 15. g4
{[%clk 0:02:37.3]} 15... O-O-O {[%clk 0:01:53.5]} 16. f3 {[%clk 0:02:35.7]}
16... Kb8 {[%clk 0:01:48.3]} 17. Nb3 {[%clk 0:02:34.3]} 17... Qc7 {[%clk
0:01:44.3]} 18. c4 {[%clk 0:02:30.8]} 18... Ka8 {[%clk 0:01:40.8]} 19. Ba5
{[%clk 0:02:29.2]} 19... b6 {[%clk 0:01:40.6]} 20. Bc3 {[%clk 0:02:29.8]} 20...
Bc6 {[%clk 0:01:39.4]} 21. Rhe1 {[%clk 0:02:25.3]} 21... Rhg8 {[%clk 0:01:30.1]}
22. Nd4 {[%clk 0:02:23.2]} 22... Bb7 {[%clk 0:01:19.2]} 23. Nb5 {[%clk
0:02:23.3]} 23... Qc6 {[%clk 0:01:13.9]} 24. Be5 {[%clk 0:02:22.6]} 24... a6
{[%clk 0:01:00.5]} 25. Nd4 {[%clk 0:02:17.1]} 25... Qc5 {[%clk 0:00:57.4]} 26.
g5 {[%clk 0:02:05.3]} 26... hxg5 {[%clk 0:00:57]} 27. hxg5 {[%clk 0:02:04.8]}
27... Nd7 {[%clk 0:00:57.2]} 28. Bg3 {[%clk 0:01:32.6]} 28... Qxd4 {[%clk
0:00:48.4]} 29. Bh7 {[%clk 0:01:31.6]} 29... Qc5 {[%clk 0:00:30.1]} 30. Bxg8
{[%clk 0:01:30.3]} 30... Rxg8 {[%clk 0:00:26.4]} 31. Rxd7 {[%clk 0:01:29.4]}
31... Bxg5 {[%clk 0:00:26.7]} 32. Rxf7 {[%clk 0:01:14.6]} 32... Bf6 {[%clk
0:00:23.3]} 33. Bf2 {[%clk 0:00:54.7]} 33... Qb4 {[%clk 0:00:21.1]} 34. a3
{[%clk 0:00:47.8]} 34... Qb3 {[%clk 0:00:20.4]} 35. Qc2 {[%clk 0:00:47.1]} 35...
Qxf3 {[%clk 0:00:18.9]} 36. Bxb6 {[%clk 0:00:46.5]} 36... Rc8 {[%clk 0:00:15.3]}
37. Rc7 {[%clk 0:00:42.4]} 37... Rb8 {[%clk 0:00:12.8]} 38. Ka2 {[%clk
0:00:35.3]} 38... Bd8 {[%clk 0:00:12.5]} 39. Rxb7 {[%clk 0:00:19.3]} 39... Qxb7
{[%clk 0:00:13.4]} 40. Bxd8 {[%clk 0:00:19.7]} 40... Rxd8 {[%clk 0:00:14]} 41.
Rxe6 {[%clk 0:00:20.3]} 41... Rb8 {[%clk 0:00:12.3]} 42. b4 {[%clk 0:00:19.3]}
42... Qf7 {[%clk 0:00:10.7]} 43. Rxa6+ {[%clk 0:00:10.8]} 43... Kb7 {[%clk
0:00:11.1]} 44. b5 {[%clk 0:00:07.5]} 44... Rc8 {[%clk 0:00:10]} 45. Qe4+ {[%clk
0:00:06.8]} 45... Kb8 {[%clk 0:00:10]} 46. Qa8+ {[%clk 0:00:03.3]} 46... Kc7
{[%clk 0:00:10.5]} 47. Rc6+ {[%clk 0:00:04.2]} 47... Kd7 {[%clk 0:00:10.4]} 48.
Qxc8+ {[%clk 0:00:05.1]} 48... Ke7 {[%clk 0:00:11.3]} 49. Rc7+ {[%clk
0:00:05.3]} 1-0

[Event "*** Titled Tuesday Blitz"]
[Site "Chess.com"]
[Date "2020.03.03"]
[Round "3"]
[White "HarryCun"]
[Black "ChristianAlm"]
[Result "0-1"]
[WhiteElo "2106"]
[BlackElo "2348"]
[TimeControl "180+1"]
[EndTime "9:30:18 PST"]
[Termination "ChristianAlm won by checkmate"]

1. d4 {[%clk 0:03:00.9]} 1... Nf6 {[%clk 0:02:59.5]} 2. c4 {[%clk 0:03:01.8]}
2... e6 {[%clk 0:02:59.6]} 3. Nf3 {[%clk 0:03:02.7]} 3... d5 {[%clk 0:02:59.6]}
4. g3 {[%clk 0:03:03]} 4... Be7 {[%clk 0:02:59.2]} 5. Bg2 {[%clk 0:03:03.2]}
5... O-O {[%clk 0:02:58.7]} 6. O-O {[%clk 0:03:03.8]} 6... c5 {[%clk 0:02:53]}
7. cxd5 {[%clk 0:03:03.4]} 7... Nxd5 {[%clk 0:02:51.2]} 8. Nc3 {[%clk 0:03:02]}
8... Nc6 {[%clk 0:02:48.8]} 9. Nxd5 {[%clk 0:03:01.3]} 9... exd5 {[%clk
0:02:48.1]} 10. Be3 {[%clk 0:02:58.5]} 10... c4 {[%clk 0:02:47.1]} 11. Bf4
{[%clk 0:02:57.2]} 11... Bf5 {[%clk 0:02:46.3]} 12. Ne5 {[%clk 0:02:56.8]} 12...
Bf6 {[%clk 0:02:41.3]} 13. Re1 {[%clk 0:02:55.6]} 13... Re8 {[%clk 0:02:39.6]}
14. e4 {[%clk 0:02:55.5]} 14... Bxe4 {[%clk 0:02:37.1]} 15. Bxe4 {[%clk
0:02:55]} 15... dxe4 {[%clk 0:02:37.3]} 16. Rxe4 {[%clk 0:02:54.9]} 16... Qd5
{[%clk 0:02:04.7]} 17. f3 {[%clk 0:02:40.3]} 17... g5 {[%clk 0:01:48.8]} 18.
Nxc6 {[%clk 0:02:37.9]} 18... bxc6 {[%clk 0:01:46]} 19. Be5 {[%clk 0:02:25.3]}
19... Bxe5 {[%clk 0:01:36.1]} 20. dxe5 {[%clk 0:02:25.2]} 20... Rxe5 {[%clk
0:01:35.2]} 21. Qxd5 {[%clk 0:02:24.8]} 21... Rxd5 {[%clk 0:01:33.9]} 22. Rxc4
{[%clk 0:02:24.7]} 22... Rd2 {[%clk 0:01:33.6]} 23. Rxc6 {[%clk 0:02:17.2]}
23... Re8 {[%clk 0:01:31.6]} 24. Rc5 {[%clk 0:01:50.9]} 24... h6 {[%clk
0:01:30.5]} 25. h4 {[%clk 0:01:39]} 25... gxh4 {[%clk 0:01:24.9]} 26. gxh4
{[%clk 0:01:37.8]} 26... Ree2 {[%clk 0:01:22.5]} 27. b4 {[%clk 0:01:32.2]} 27...
Rg2+ {[%clk 0:01:16.4]} 28. Kh1 {[%clk 0:01:32.2]} 28... Rh2+ {[%clk 0:01:15.8]}
29. Kg1 {[%clk 0:01:32.6]} 29... Rdg2+ {[%clk 0:01:12.4]} 30. Kf1 {[%clk
0:01:32.7]} 30... Rb2 {[%clk 0:01:11.1]} 31. Kg1 {[%clk 0:01:30.7]} 31... Rxh4
{[%clk 0:01:09.4]} 32. a4 {[%clk 0:01:21.7]} 32... Rhxb4 {[%clk 0:00:58.6]} 33.
Rd1 {[%clk 0:01:20.4]} 33... Rb1 {[%clk 0:00:56.1]} 34. Rxb1 {[%clk 0:01:10.8]}
34... Rxb1+ {[%clk 0:00:57]} 35. Kg2 {[%clk 0:01:11.1]} 35... Rb6 {[%clk
0:00:55.6]} 36. Ra5 {[%clk 0:01:08.7]} 36... a6 {[%clk 0:00:54.3]} 37. Rh5
{[%clk 0:01:07]} 37... Kg7 {[%clk 0:00:54.1]} 38. Kg3 {[%clk 0:01:07]} 38... Kg6
{[%clk 0:00:54]} 39. Rc5 {[%clk 0:01:07]} 39... f6 {[%clk 0:00:50.6]} 40. Kf4
{[%clk 0:01:06.9]} 40... Rb4+ {[%clk 0:00:50.2]} 41. Ke3 {[%clk 0:01:07.1]}
41... Rxa4 {[%clk 0:00:50.3]} 42. Kf2 {[%clk 0:01:05.2]} 42... Ra1 {[%clk
0:00:49]} 43. Kg3 {[%clk 0:01:05.5]} 43... a5 {[%clk 0:00:49.3]} 44. Rc7 {[%clk
0:01:05.4]} 44... a4 {[%clk 0:00:49.3]} 45. f4 {[%clk 0:01:05.9]} 45... Kf5
{[%clk 0:00:42.3]} 46. Kf3 {[%clk 0:01:03.7]} 46... Ra3+ {[%clk 0:00:41.9]} 47.
Kf2 {[%clk 0:00:59.8]} 47... Kxf4 {[%clk 0:00:40.1]} 48. Kg2 {[%clk 0:01:00]}
48... f5 {[%clk 0:00:38.7]} 49. Kf2 {[%clk 0:00:59.7]} 49... Ra2+ {[%clk
0:00:38.3]} 50. Kf1 {[%clk 0:01:00]} 50... h5 {[%clk 0:00:36.4]} 51. Rc3 {[%clk
0:00:59.5]} 51... Kg4 {[%clk 0:00:35.6]} 52. Rc4+ {[%clk 0:00:59.7]} 52... f4
{[%clk 0:00:35.8]} 53. Kg1 {[%clk 0:00:59.9]} 53... h4 {[%clk 0:00:35.7]} 54.
Rc3 {[%clk 0:00:59.5]} 54... f3 {[%clk 0:00:32.8]} 55. Rc8 {[%clk 0:00:59.1]}
55... a3 {[%clk 0:00:29.7]} 56. Kh1 {[%clk 0:00:57.8]} 56... Kh3 {[%clk
0:00:27.5]} 57. Rc1 {[%clk 0:00:55.4]} 57... Rh2+ {[%clk 0:00:27.8]} 58. Kg1
{[%clk 0:00:55.2]} 58... f2+ {[%clk 0:00:28.7]} 59. Kf1 {[%clk 0:00:55.5]} 59...
Rh1+ {[%clk 0:00:29.3]} 60. Kxf2 {[%clk 0:00:55.7]} 60... Rxc1 {[%clk
0:00:30.2]} 61. Ke2 {[%clk 0:00:56.5]} 61... Rc3 {[%clk 0:00:29.9]} 62. Kd2
{[%clk 0:00:57.4]} 62... Rg3 {[%clk 0:00:30.6]} 63. Kc2 {[%clk 0:00:57.2]} 63...
Kg4 {[%clk 0:00:30.3]} 64. Kb1 {[%clk 0:00:57.4]} 64... h3 {[%clk 0:00:31.2]}
65. Ka2 {[%clk 0:00:58]} 65... h2 {[%clk 0:00:30.9]} 66. Kb1 {[%clk 0:00:57]}
66... Rg2 {[%clk 0:00:30.9]} 67. Ka1 {[%clk 0:00:56]} 67... h1=Q# {[%clk
0:00:29.3]} 0-1

[Event "*** Titled Tuesday Blitz"]
[Site "Chess.com"]
[Date "2020.03.03"]
[Round "3"]
[White "norwaytoadog"]
[Black "LawrenceTrent"]
[Result "0-1"]
[WhiteElo "2252"]
[BlackElo "2579"]
[TimeControl "180+1"]
[EndTime "9:30:20 PST"]
[Termination "LawrenceTrent won on time"]

1. e4 {[%clk 0:03:00.9]} 1... c5 {[%clk 0:02:56.7]} 2. Nf3 {[%clk 0:03:01]} 2...
Nc6 {[%clk 0:02:51.3]} 3. Bb5 {[%clk 0:03:01]} 3... e5 {[%clk 0:02:48]} 4. Bxc6
{[%clk 0:02:59.7]} 4... dxc6 {[%clk 0:02:46.6]} 5. d3 {[%clk 0:02:59.7]} 5... f6
{[%clk 0:02:46.1]} 6. O-O {[%clk 0:02:59.2]} 6... Bd6 {[%clk 0:02:44.5]} 7. Nbd2
{[%clk 0:02:58.1]} 7... Ne7 {[%clk 0:02:40.4]} 8. Nc4 {[%clk 0:02:54.9]} 8...
Ng6 {[%clk 0:02:33.3]} 9. Be3 {[%clk 0:02:52]} 9... b6 {[%clk 0:02:32.6]} 10. a3
{[%clk 0:02:47.3]} 10... a5 {[%clk 0:02:31.2]} 11. a4 {[%clk 0:02:43.3]} 11...
Bc7 {[%clk 0:02:28]} 12. h3 {[%clk 0:02:29]} 12... Nf8 {[%clk 0:02:17.1]} 13.
Qe2 {[%clk 0:02:23.2]} 13... Ne6 {[%clk 0:02:13.2]} 14. c3 {[%clk 0:02:22.9]}
14... Qe7 {[%clk 0:02:12.4]} 15. b4 {[%clk 0:02:15.5]} 15... cxb4 {[%clk
0:01:51.3]} 16. cxb4 {[%clk 0:02:09.5]} 16... axb4 {[%clk 0:01:46.5]} 17. Nxb6
{[%clk 0:01:57.8]} 17... Bxb6 {[%clk 0:01:45.3]} 18. Bxb6 {[%clk 0:01:56.5]}
18... Ba6 {[%clk 0:01:32.6]} 19. Qc2 {[%clk 0:01:45.5]} 19... O-O {[%clk
0:01:20.8]} 20. Rfd1 {[%clk 0:01:35.1]} 20... c5 {[%clk 0:01:19.4]} 21. Rac1
{[%clk 0:01:27.7]} 21... Rfc8 {[%clk 0:01:16.9]} 22. Qb3 {[%clk 0:01:22.8]}
22... Kh8 {[%clk 0:01:10.9]} 23. a5 {[%clk 0:01:05.5]} 23... Qd6 {[%clk
0:01:07.8]} 24. Qd5 {[%clk 0:00:58.5]} 24... Qe7 {[%clk 0:00:53.3]} 25. Nh4
{[%clk 0:00:55.3]} 25... g6 {[%clk 0:00:52.8]} 26. Qb3 {[%clk 0:00:38]} 26...
Nd4 {[%clk 0:00:41.2]} 27. Qb2 {[%clk 0:00:32.2]} 27... Rc6 {[%clk 0:00:35.7]}
28. g3 {[%clk 0:00:29.8]} 28... Rac8 {[%clk 0:00:25.2]} 29. Ng2 {[%clk
0:00:29.8]} 29... Qd7 {[%clk 0:00:22.3]} 30. g4 {[%clk 0:00:27.4]} 30... h5
{[%clk 0:00:15.4]} 31. Ne3 {[%clk 0:00:27.2]} 31... hxg4 {[%clk 0:00:14.8]} 32.
hxg4 {[%clk 0:00:27.3]} 32... Kg7 {[%clk 0:00:15.4]} 33. Nd5 {[%clk 0:00:22.4]}
33... Bb7 {[%clk 0:00:14.1]} 34. Ne3 {[%clk 0:00:19.4]} 34... Rh8 {[%clk
0:00:10.2]} 35. Kg2 {[%clk 0:00:13.7]} 35... Ne6 {[%clk 0:00:10.1]} 36. Rh1
{[%clk 0:00:13]} 36... Nf4+ {[%clk 0:00:11]} 37. Kg3 {[%clk 0:00:11.2]} 37...
Nxd3 {[%clk 0:00:09.7]} 38. Qb3 {[%clk 0:00:08.5]} 38... Nxc1 {[%clk 0:00:07.6]}
39. Rxc1 {[%clk 0:00:08.2]} 39... c4 {[%clk 0:00:07.7]} 40. Qxb4 {[%clk
0:00:06.9]} 40... Qd3 {[%clk 0:00:06.3]} 41. Rd1 {[%clk 0:00:06.8]} 41... Qxe4
{[%clk 0:00:04.9]} 42. Rd7+ {[%clk 0:00:06.7]} 42... Kh6 {[%clk 0:00:05.1]} 43.
Qe1 {[%clk 0:00:03.4]} 43... Qf4+ {[%clk 0:00:05.3]} 0-1

[Event "*** Titled Tuesday Blitz"]
[Site "Chess.com"]
[Date "2020.03.03"]
[Round "3"]
[White "Abdimalik_Abdisalimov"]
[Black "Eraschenkov"]
[Result "1-0"]
[WhiteElo "2807"]
[BlackElo "2577"]
[TimeControl "180+1"]
[EndTime "9:30:25 PST"]
[Termination "Abdimalik_Abdisalimov won by resignation"]

1. Nf3 {[%clk 0:02:58]} 1... Nf6 {[%clk 0:02:59.2]} 2. d4 {[%clk 0:02:58.2]}
2... g6 {[%clk 0:02:57.9]} 3. c4 {[%clk 0:02:57.6]} 3... Bg7 {[%clk 0:02:57.7]}
4. g3 {[%clk 0:02:58]} 4... c6 {[%clk 0:02:57]} 5. Bg2 {[%clk 0:02:58.9]} 5...
d5 {[%clk 0:02:57]} 6. O-O {[%clk 0:02:59.2]} 6... O-O {[%clk 0:02:56.9]} 7. Qb3
{[%clk 0:02:59.4]} 7... a5 {[%clk 0:02:50.2]} 8. Nc3 {[%clk 0:02:57.4]} 8... a4
{[%clk 0:02:48.8]} 9. Qb4 {[%clk 0:02:54.1]} 9... dxc4 {[%clk 0:02:45.4]} 10.
Qxc4 {[%clk 0:02:55]} 10... Be6 {[%clk 0:02:30.4]} 11. Qd3 {[%clk 0:02:48.5]}
11... Na6 {[%clk 0:02:19.1]} 12. a3 {[%clk 0:02:44.5]} 12... Nc7 {[%clk
0:02:06.9]} 13. Bg5 {[%clk 0:02:40.1]} 13... Nfd5 {[%clk 0:02:00.6]} 14. Ne4
{[%clk 0:02:36]} 14... h6 {[%clk 0:01:25.9]} 15. Bd2 {[%clk 0:02:34.2]} 15... b6
{[%clk 0:01:25.1]} 16. Rac1 {[%clk 0:02:31.6]} 16... f5 {[%clk 0:01:23.9]} 17.
Nc3 {[%clk 0:02:30.4]} 17... Nxc3 {[%clk 0:01:19.8]} 18. Rxc3 {[%clk 0:02:31.3]}
18... Bd5 {[%clk 0:01:17.9]} 19. Rfc1 {[%clk 0:02:27.8]} 19... Be4 {[%clk
0:01:12.2]} 20. Qc4+ {[%clk 0:02:24.1]} 20... Bd5 {[%clk 0:01:11.4]} 21. Qb4
{[%clk 0:02:22.5]} 21... Qd7 {[%clk 0:00:55.9]} 22. e3 {[%clk 0:02:14.7]} 22...
Na6 {[%clk 0:00:48.3]} 23. Qxa4 {[%clk 0:02:08.3]} 23... Nc5 {[%clk 0:00:46.4]}
24. Qd1 {[%clk 0:02:04.1]} 24... Na4 {[%clk 0:00:44.9]} 25. R3c2 {[%clk
0:02:03.7]} 25... Bb3 {[%clk 0:00:44.5]} 26. Ne1 {[%clk 0:02:00.9]} 26... Nxb2
{[%clk 0:00:42.8]} 27. Qe2 {[%clk 0:01:56.2]} 27... Bxc2 {[%clk 0:00:41.6]} 28.
Rxc2 {[%clk 0:01:57.1]} 28... Rxa3 {[%clk 0:00:37.1]} 29. Rxb2 {[%clk
0:01:53.7]} 29... c5 {[%clk 0:00:36.6]} 30. Qc4+ {[%clk 0:01:50.6]} 30... Kh7
{[%clk 0:00:35.8]} 31. Rxb6 {[%clk 0:01:48]} 31... cxd4 {[%clk 0:00:32.9]} 32.
Rb7 {[%clk 0:01:47.9]} 32... Rc8 {[%clk 0:00:28.1]} 33. Qb4 {[%clk 0:01:45]}
33... Qd6 {[%clk 0:00:21.1]} 34. Qxd6 {[%clk 0:01:45.2]} 34... exd6 {[%clk
0:00:20.9]} 35. exd4 {[%clk 0:01:45.4]} 35... Ra2 {[%clk 0:00:20.6]} 36. Be3
{[%clk 0:01:42.5]} 36... Kh8 {[%clk 0:00:17.8]} 37. Bd5 {[%clk 0:01:40.5]} 37...
Ra1 {[%clk 0:00:17.6]} 38. Kf1 {[%clk 0:01:40.7]} 38... Re8 {[%clk 0:00:17.8]}
39. Bf7 {[%clk 0:01:35.4]} 39... Rf8 {[%clk 0:00:14.6]} 40. Bxg6 {[%clk
0:01:32.6]} 40... Ra4 {[%clk 0:00:13.6]} 41. Nc2 {[%clk 0:01:26.8]} 41... Rc4
{[%clk 0:00:13.1]} 42. Rb2 {[%clk 0:01:24.6]} 42... Rfc8 {[%clk 0:00:12.2]} 43.
Bxf5 {[%clk 0:01:24.2]} 43... Rf8 {[%clk 0:00:10.5]} 44. Bd3 {[%clk 0:01:24.3]}
44... Rc3 {[%clk 0:00:10.5]} 45. Ke2 {[%clk 0:01:24.6]} 45... Rc7 {[%clk
0:00:10.1]} 46. Ra2 {[%clk 0:01:23.7]} 46... Re7 {[%clk 0:00:08.6]} 47. Kd2
{[%clk 0:01:23.1]} 47... Re6 {[%clk 0:00:08]} 48. h4 {[%clk 0:01:23.4]} 48...
Ref6 {[%clk 0:00:08]} 49. Ke2 {[%clk 0:01:19.7]} 49... h5 {[%clk 0:00:07.1]} 50.
Ra6 {[%clk 0:01:19.4]} 50... Bh6 {[%clk 0:00:06.2]} 51. Bxh6 {[%clk 0:01:16.5]}
51... Rxh6 {[%clk 0:00:06.5]} 52. Ne3 {[%clk 0:01:16.9]} 52... Rhf6 {[%clk
0:00:06.7]} 53. Nf5 {[%clk 0:01:16.2]} 53... Re8+ {[%clk 0:00:06.4]} 54. Kd2
{[%clk 0:01:15.9]} 54... Rd8 {[%clk 0:00:06.7]} 55. Ke3 {[%clk 0:01:13.9]} 55...
Kg8 {[%clk 0:00:06.4]} 56. Kf4 {[%clk 0:01:14.2]} 56... Kf8 {[%clk 0:00:06.9]}
57. d5 {[%clk 0:01:14.2]} 57... Rf7 {[%clk 0:00:05.5]} 58. Be4 {[%clk
0:01:14.3]} 58... Rf6 {[%clk 0:00:05.3]} 59. f3 {[%clk 0:01:14.5]} 59... Rf7
{[%clk 0:00:05.8]} 60. Kg5 {[%clk 0:01:14.5]} 60... Kg8 {[%clk 0:00:04.9]} 61.
Kxh5 {[%clk 0:01:11.6]} 1-0

[Event "*** Titled Tuesday Blitz"]
[Site "Chess.com"]
[Date "2020.03.03"]
[Round "3"]
[White "Gahan-MG"]
[Black "MikaelyanArman"]
[Result "1-0"]
[WhiteElo "2464"]
[BlackElo "2648"]
[TimeControl "180+1"]
[EndTime "9:30:27 PST"]
[Termination "Gahan-MG won on time"]

1. e4 {[%clk 0:03:00.9]} 1... c5 {[%clk 0:02:58.4]} 2. Nf3 {[%clk 0:03:00.3]}
2... Nc6 {[%clk 0:02:58.6]} 3. c3 {[%clk 0:03:00.4]} 3... Nf6 {[%clk 0:02:57.7]}
4. e5 {[%clk 0:03:00.7]} 4... Nd5 {[%clk 0:02:58]} 5. d4 {[%clk 0:03:01.6]} 5...
cxd4 {[%clk 0:02:56.3]} 6. cxd4 {[%clk 0:03:02.5]} 6... d6 {[%clk 0:02:55.5]} 7.
Bc4 {[%clk 0:03:02.6]} 7... Nb6 {[%clk 0:02:55.5]} 8. Bb5 {[%clk 0:03:02.8]}
8... Bd7 {[%clk 0:02:46.7]} 9. Nc3 {[%clk 0:03:02.2]} 9... e6 {[%clk 0:02:38.2]}
10. O-O {[%clk 0:03:00.7]} 10... a6 {[%clk 0:02:30.2]} 11. Bd3 {[%clk
0:03:00.2]} 11... dxe5 {[%clk 0:02:26.6]} 12. dxe5 {[%clk 0:02:58.8]} 12... Be7
{[%clk 0:02:26.4]} 13. Qe2 {[%clk 0:02:58.3]} 13... Qc7 {[%clk 0:02:09.7]} 14.
a3 {[%clk 0:02:42.6]} 14... Rd8 {[%clk 0:01:54.8]} 15. Rd1 {[%clk 0:02:35.3]}
15... Bc8 {[%clk 0:01:50.9]} 16. Qe4 {[%clk 0:02:33.4]} 16... Nd5 {[%clk
0:01:42.6]} 17. Nxd5 {[%clk 0:02:30.4]} 17... exd5 {[%clk 0:01:40.2]} 18. Qf4
{[%clk 0:02:19]} 18... Be6 {[%clk 0:01:36.4]} 19. Be3 {[%clk 0:02:13.8]} 19...
h6 {[%clk 0:01:35.1]} 20. Rac1 {[%clk 0:02:12.1]} 20... Qd7 {[%clk 0:01:31.6]}
21. Nd4 {[%clk 0:02:10.7]} 21... Nxd4 {[%clk 0:01:27.9]} 22. Qxd4 {[%clk
0:02:10.2]} 22... O-O {[%clk 0:01:25.9]} 23. h3 {[%clk 0:02:05.2]} 23... Rc8
{[%clk 0:01:18.5]} 24. Bb1 {[%clk 0:02:04.6]} 24... Rxc1 {[%clk 0:01:15.8]} 25.
Rxc1 {[%clk 0:02:04.5]} 25... Rc8 {[%clk 0:01:15.8]} 26. Rxc8+ {[%clk
0:02:02.1]} 26... Qxc8 {[%clk 0:01:16.7]} 27. Qd3 {[%clk 0:02:02.6]} 27... g6
{[%clk 0:00:46.2]} 28. Bxh6 {[%clk 0:02:00.4]} 28... Bf5 {[%clk 0:00:46.3]} 29.
Qd1 {[%clk 0:01:57.3]} 29... Bxb1 {[%clk 0:00:45.5]} 30. Qxb1 {[%clk 0:01:58.2]}
30... Qc4 {[%clk 0:00:45.9]} 31. e6 {[%clk 0:01:53.5]} 31... Kh7 {[%clk
0:00:40.9]} 32. Bd2 {[%clk 0:01:33.9]} 32... fxe6 {[%clk 0:00:40.7]} 33. Qe1
{[%clk 0:01:34.1]} 33... Qe4 {[%clk 0:00:36.1]} 34. Qxe4 {[%clk 0:01:33.5]}
34... dxe4 {[%clk 0:00:37]} 35. Kf1 {[%clk 0:01:29.4]} 35... Kg7 {[%clk
0:00:23.6]} 36. Ke2 {[%clk 0:01:26.6]} 36... Kf6 {[%clk 0:00:21.9]} 37. Bc3+
{[%clk 0:01:22.2]} 37... Kf5 {[%clk 0:00:22.2]} 38. g4+ {[%clk 0:01:18.1]} 38...
Kf4 {[%clk 0:00:19.7]} 39. Bd4 {[%clk 0:01:18.5]} 39... b5 {[%clk 0:00:14.6]}
40. Be3+ {[%clk 0:01:18.7]} 40... Ke5 {[%clk 0:00:14.7]} 41. Ba7 {[%clk
0:01:17.9]} 41... Kd5 {[%clk 0:00:14.5]} 42. Ke3 {[%clk 0:01:16.8]} 42... Bg5+
{[%clk 0:00:14.2]} 43. Ke2 {[%clk 0:01:17.2]} 43... Kc4 {[%clk 0:00:14.6]} 44.
Bb8 {[%clk 0:01:04]} 44... Bf6 {[%clk 0:00:13.3]} 45. b4 {[%clk 0:00:49.9]}
45... Kb3 {[%clk 0:00:12.8]} 46. Ke3 {[%clk 0:00:48]} 46... Kxa3 {[%clk
0:00:12.5]} 47. Bd6 {[%clk 0:00:48.7]} 47... Kb3 {[%clk 0:00:06.1]} 48. Kxe4
{[%clk 0:00:48.9]} 48... Kc4 {[%clk 0:00:06]} 49. f4 {[%clk 0:00:48.9]} 49...
Bh4 {[%clk 0:00:04.1]} 50. Ke5 {[%clk 0:00:47.1]} 50... Be1 {[%clk 0:00:02.5]}
51. Kxe6 {[%clk 0:00:47.3]} 1-0